Cogmind - Beta 11.1 @@@ ROGUE MODE // 2022.07.14 @ 06:59:44 Player: ktur Result: Self-destructed Performance ------------- Evolutions (4) 2000 Regions Visited (15) 3000 Robots Destroyed (113) 565 Value Destroyed (2827) 2827 Prototype IDs (32) 640 Alien Tech Used (0) 0 Bonus (573) 573 TOTAL SCORE: 9605 Bonus ------- High Alert Combat Kills 6 Follower Combat Kills 487 Met Data Miner 300 Friendly Fire -220 Cogmind --------- Core Integrity 674/850 Matter 275/300 Energy 48/100 System Corruption 5% Temperature Cool (3) Movement Flying (29) Location -6/Factory Parts ------- > --- POWER (1) -------- (None) > --- PROPULSION (4) --- Cooled VTOL Module Cooled VTOL Module Cooled VTOL Module > --- UTILITY (8) ------ Medium Storage Unit Enhanced Optical Array Advanced Sensor Array Improved Signal Interpreter Hacking Suite Hacking Suite > --- WEAPON (2) ------- Heavy Flail > --- INVENTORY (10) --- Micro Nuclear Core Cooled Nuclear Pulse Thruster Huge Storage Unit High-capacity Matter Pod (200) Long-range Terrain Scanner Ghost Barrier Authchip [Processor] Improved Trap Extractor (5/6 Blade) Improved Trap Extractor (4/6 Dirty Bomb) Peak State ------------ > --- POWER ------------ Micro Nuclear Core > --- PROPULSION ------- Improved VTOL Module Improved VTOL Module Cooled VTOL Module Cooled VTOL Module > --- UTILITY ---------- Medium Storage Unit Enhanced Optical Array Advanced Sensor Array Improved Signal Interpreter Hacking Suite Hacking Suite > --- WEAPON ----------- Improved Grenade Launcher Heavy Flail > --- INVENTORY -------- Cooled VTOL Module Cooled Nuclear Pulse Thruster Huge Storage Unit High-capacity Matter Pod Long-range Terrain Scanner Ghost Barrier Authchip [Processor] Improved Trap Extractor Improved Trap Extractor [Rating: 52] Favorites ----------- Power Ion Engine Engine Ion Engine Power Core Light Nuclear Core Propulsion Light Treads Treads Light Treads Flight Unit Improved VTOL Module Utility Huge Storage Unit Device Improved Sensor Array Storage Huge Storage Unit Processor Improved Targeting Computer Hackware Hacking Suite Protection Reflective Plating Weapon Improved Light Cannon Energy Gun Small Laser Ballistic Gun Enhanced Autogun Ballistic Cannon Improved Light Cannon Launcher Improved Grenade Launcher Impact Weapon Heavy Flail Slashing Weapon Greatsword Special Melee Weapon Improved Datajack Build | -11 -10 -10 -10 -9 -8 -7 -7 -7 -7 -7 -7 -6 -6 -6 -6 ------- Run | Scr Mat Min Exi Min Mat Fac Was Fac Low Low Dat Pro Fac Was Fac Slots Evolved 8 | . . . . . 4 2 . . . . . . 2 . . Power . | . . . . . . . . . . . . . . . . Propulsion 2 | . . . . . 1 1 . . . . . . . . . Utility 6 | . . . . . 3 1 . . . . . . 2 . . Weapon . | . . . . . . . . . . . . . . . . Parts Attached 116 | 6 17 . . 4 38 23 2 3 2 6 4 2 3 1 5 Power 10 | 1 2 . . 1 4 1 . . . . . 1 . . . Engine 7 | 1 2 . . 1 3 . . . . . . . . . . Core 3 | . . . . . 1 1 . . . . . 1 . . . Reactor . | . . . . . . . . . . . . . . . . Propulsion 26 | 2 2 . . 1 11 5 . 3 . . . . . 1 1 Treads 16 | 2 2 . . 1 11 . . . . . . . . . . Leg . | . . . . . . . . . . . . . . . . Wheel . | . . . . . . . . . . . . . . . . Hover . | . . . . . . . . . . . . . . . . Flight 10 | . . . . . . 5 . 3 . . . . . 1 1 Utility 42 | 1 3 . . 2 12 13 2 . . 3 1 1 2 . 2 Device 21 | . 1 . . . 6 4 2 . . 3 1 1 1 . 2 Storage 7 | 1 2 . . 1 1 2 . . . . . . . . . Processor 6 | . . . . 1 2 2 . . . . . . 1 . . Hackware 4 | . . . . . . 4 . . . . . . . . . Protection 4 | . . . . . 3 1 . . . . . . . . . Artifact . | . . . . . . . . . . . . . . . . Weapon 38 | 2 10 . . . 11 4 . . 2 3 3 . 1 . 2 Energy Gun 2 | 1 . . . . 1 . . . . . . . . . . Energy Cannon . | . . . . . . . . . . . . . . . . Ballistic Gun 13 | 1 3 . . . 9 . . . . . . . . . . Ballistic Cannon 7 | . 7 . . . . . . . . . . . . . . Launcher 6 | . . . . . 1 1 . . 1 . . . 1 . 2 Special Weapon . | . . . . . . . . . . . . . . . . Impact Weapon 5 | . . . . . . 2 . . 1 1 1 . . . . Slashing Weapon 2 | . . . . . . . . . . 1 1 . . . . Piercing Weapon . | . . . . . . . . . . . . . . . . Special Melee Weapon 3 | . . . . . . 1 . . . 1 1 . . . . Unidentified Prototypes 4 | . . . . . 3 . 1 . . . . . . . . Parts Lost 14 | . . . . 2 5 2 . . . . . 1 1 . 3 Power 3 | . . . . 1 . 1 . . . . . 1 . . . Propulsion 4 | . . . . . 2 . . . . . . . . . 2 Utility 5 | . . . . 1 2 1 . . . . . . 1 . . Weapon 2 | . . . . . 1 . . . . . . . . . 1 Highest Loss Streak 2 | . . . . 2 2 1 . . . . . 1 1 . 2 To Critical Strikes . | . . . . . . . . . . . . . . . . Average Slot Usage (%) 94 | . 94 100 100 99 92 98 100 100 100 99 92 93 78 73 75 Engine 8 | . 14 14 14 13 7 4 . . . . . . . . . Core 1 | . . . . . 1 2 7 7 7 7 7 7 6 6 5 Treads 21 | . 27 28 28 28 26 . . . . . . . . . . Flight 6 | . . . . . . 29 30 30 30 30 30 30 26 26 25 Device 5 | . 2 14 14 1 7 6 7 7 7 6 4 7 4 . 2 Storage 11 | . 20 14 14 14 9 7 7 7 7 7 7 7 6 6 6 Processor 8 | . . . . 11 10 8 15 15 15 15 15 15 13 13 13 Hackware 3 | . . . . . . 21 15 15 15 15 15 15 13 13 13 Protection 4 | . . . . . 10 . . . . . . . . . . Ballistic Gun 6 | . 1 . . . 17 . . . . . . . . . . Ballistic Cannon 10 | . 24 28 28 28 . . . . . . . . . . . Impact Weapon 1 | . . . . . . 6 7 7 7 6 2 7 6 6 6 Special Melee Weapon 1 | . . . . . . 6 7 7 7 6 2 1 . . . Naked Turns . | . . . . . . . . . . . . . . . . Heaviest Build 104 | 12 56 54 54 94 104 23 20 20 23 22 21 20 20 19 20 Greatest Support 62 | 40 40 40 40 40 62 20 20 20 20 20 22 22 20 20 26 Greatest Overweight (x) 2 | . 1 1 1 2 1 1 . . 1 1 . . . . 1 Average Overweight (x) . | . . 1 1 1 1 . . . . . . . . . . Largest Inventory Capacity 25 | 8 20 20 20 25 25 25 10 10 10 10 10 10 10 10 10 Average Capacity 20 | 6 19 20 20 24 25 10 10 10 10 10 10 10 10 10 10 Most Carried 25 | 7 20 20 20 23 25 25 10 10 10 10 10 9 9 10 10 Average Carried 19 | 3 17 20 20 21 24 9 10 9 10 9 9 8 8 9 9 Final Capacity 25 | 8 20 20 20 25 25 10 10 10 10 10 10 10 10 10 10 Final Carried 25 | 6 20 20 20 22 25 10 10 10 10 10 9 8 9 10 9 Class Distribution -------------------- 69% | Mutant 8% | Scavenger-Mutant 8% | Scavenger-Scout 6% | Trapper-Scout 4% | Hacker-Sprinter Dominant Class ---------------- Mutant | -10/Materials Mutant | -10/Mines Mutant | -10/Exiles Mutant | -9/Mines Mutant | -8/Materials Hacker-Sprinter | -7/Factory Scavenger-Scout | -7/Waste Scavenger-Scout | -7/Factory Scavenger-Scout | -7/Lower Caves Scavenger-Scout | -7/Lower Caves Trapper-Sprinter | -7/Data Miner Trapper-Scout | -6/Proximity Caves Trapper-Scout | -6/Factory Trapper-Sprinter | -6/Waste Trapper-Scout | -6/Factory Resources | -11 -10 -10 -10 -9 -8 -7 -7 -7 -7 -7 -7 -6 -6 -6 -6 ----------- Run | Scr Mat Min Exi Min Mat Fac Was Fac Low Low Dat Pro Fac Was Fac Matter Collected 3543 | 191 518 84 . 270 1854 49 242 50 33 60 . 19 46 . 127 Remotely . | . . . . . . . . . . . . . . . . Salvage Created 3763 | . 424 71 . 284 2499 88 57 101 15 74 27 . 51 . 72 Parts 247 | . 47 11 . 15 153 4 1 3 1 2 1 . 6 . 3 Haulers Intercepted 9 | . 1 . . . 6 . . 2 . . . . . . . Recyclers Shooed 1 | . . . . . 1 . . . . . . . . . . Parts Field Recycled . | . . . . . . . . . . . . . . . . Retrieved Matter . | . . . . . . . . . . . . . . . . Parts Self-Destructed 3 | . . . . . . . . . 1 2 . . . . . Prevented . | . . . . . . . . . . . . . . . . Kills | -11 -10 -10 -10 -9 -8 -7 -7 -7 -7 -7 -7 -6 -6 -6 -6 ------- Run | Scr Mat Min Exi Min Mat Fac Was Fac Low Low Dat Pro Fac Was Fac Combat Hostiles Destroyed 76 | . 13 5 . 6 39 4 . . 1 1 . . 3 . 4 Melee 1 | . . . . . . . . . . 1 . . . . . Guns 33 | . . . . . 33 . . . . . . . . . . Cannons 26 | . 13 5 . 6 2 . . . . . . . . . . AOE 16 | . . . . . 4 4 . . 1 . . . 3 . 4 Classes Destroyed 14 | . 7 . . 1 4 . . . . 2 . . . . . Worker 2 | . 1 . . . 1 . . . . . . . . . . Tunneler 4 | . 1 . . . 2 . . . . . . . 1 . . Hauler 9 | . 1 . . . 6 . . 2 . . . . . . . Recycler 8 | . . . . 3 5 . . . . . . . . . . Minesweeper 1 | . . . . . . . . . . 1 . . . . . Operator 4 | . 2 . . . 2 . . . . . . . . . . Watcher 8 | . 1 . . . 5 1 . . . . . . . . 1 Swarmer 36 | . 6 3 . 4 11 4 . . 1 . . . 3 . 4 Grunt 26 | . 7 2 . 2 15 . . . . . . . . . . Brawler 1 | . . . . . 1 . . . . . . . . . . Sentry 9 | . . . . . 9 . . . . . . . . . . Specialist 2 | . . . . . 2 . . . . . . . . . . Programmer 1 | . . . . . . . . . . 1 . . . . . Heavy 1 | . . . . . 1 . . . . . . . . . . Best Kill Streak 7 | . 4 3 . 6 7 4 . 2 1 1 1 . 3 . 4 Combat Bots Only 7 | . 3 3 . 4 7 4 . . 1 1 . . 3 . 4 Max Kills in Single Turn 3 | . 2 1 . 2 3 3 . 1 1 1 1 . 2 . 3 Gunslinging 1 | . . . . . 1 . . . . . . . . . . Exploded 3 | . . . . . 3 3 . . 1 . . . 2 . 3 Melee 1 | . . . . . . . . . . 1 . . . . . Uniques/NPCs Destroyed 1 | . . . . . . . . . . . 1 . . . . Data Miner (-7/Data Miner) Combat | -11 -10 -10 -10 -9 -8 -7 -7 -7 -7 -7 -7 -6 -6 -6 -6 -------- Run | Scr Mat Min Exi Min Mat Fac Was Fac Low Low Dat Pro Fac Was Fac Damage Taken 3863 | . 387 275 . 249 1980 205 . . 84 . . 43 216 . 424 Core 579 | . 27 36 . 47 237 27 . . 17 . . 12 49 . 127 Absorbed by Shields . | . . . . . . . . . . . . . . . . Regen/Repaired (Parts) 348 | . 169 . . . 133 27 . . . . . . 19 . . Core Remaining (%) 76 | 100 . . . 56 56 . . . . . . 92 . . . Volleys Fired 261 | . 59 13 . 13 167 2 . . 1 . . . 2 . 4 Largest 2 | . 2 2 . 2 2 1 . . 1 . . . 1 . 1 Hottest 78 | . 70 78 . 78 78 36 . . 36 . . . 36 . 36 Shots Fired 473 | . 84 26 . 26 328 2 . . 1 . . . 2 . 4 Gun 342 | . 26 . . . 316 . . . . . . . . . . Cannon 120 | . 58 26 . 26 10 . . . . . . . . . . Launcher 11 | . . . . . 2 2 . . 1 . . . 2 . 4 Special . | . . . . . . . . . . . . . . . . Kinetic 462 | . 84 26 . 26 326 . . . . . . . . . . Thermal . | . . . . . . . . . . . . . . . . Explosive 11 | . . . . . 2 2 . . 1 . . . 2 . 4 Electromagnetic . | . . . . . . . . . . . . . . . . Robot Hit Streak 37 | . 9 3 . 5 37 4 . . . . . . 6 . . Robot Miss Streak 5 | . 3 3 . 2 5 . . . . . . . . . 1 Penetration Max . | . . . . . . . . . . . . . . . . Secondary Targets 5 | . . . . . 5 . . . . . . . . . . Max Gunslinging Chain 1 | . . . . . 1 . . . . . . . . . . Shots Hit Robots 312 | . 49 11 . 16 223 2 1 2 1 2 1 . 3 . 1 Core Hits 162 | . 22 6 . 10 104 3 1 1 1 1 1 . 3 . 9 Critical Kills 1 | . . . . . . . 1 . . . . . . . . Critical Parts Destroyed . | . . . . . . . . . . . . . . . . Critical Strikes 4 | . 1 . . 2 . . 1 . . . . . . . . Blast 3 | . 1 . . 2 . . . . . . . . . . . Smash 1 | . . . . . . . 1 . . . . . . . . Melee Attacks 59 | . . . . . . 17 1 9 6 5 1 4 9 . 7 Impact 57 | . . . . . . 17 1 9 6 4 . 4 9 . 7 Slashing 2 | . . . . . . . . . . 1 1 . . . . Piercing . | . . . . . . . . . . . . . . . . Sneak Attacks 6 | . . . . . . . . 2 . 2 1 . 1 . . Combat Hostiles 1 | . . . . . . . . . . 1 . . . . . Follow-up Attacks . | . . . . . . . . . . . . . . . . Damage Inflicted 7473 | . 897 244 . 424 3983 344 121 198 130 197 135 . 340 . 460 Guns 3790 | . 247 . . . 3543 . . . . . . . . . . Cannons 1410 | . 613 243 . 405 149 . . . . . . . . . . Explosions 1215 | . . . . . 230 287 . . 110 . . . 231 . 357 Melee 940 | . . . . . . 57 121 198 20 197 135 . 109 . 103 Ramming 118 | . 37 1 . 19 61 . . . . . . . . . . Kinetic 5200 | . 860 243 . 405 3692 . . . . . . . . . . Thermal . | . . . . . . . . . . . . . . . . Explosive 1215 | . . . . . 230 287 . . 110 . . . 231 . 357 Electromagnetic . | . . . . . . . . . . . . . . . . Impact 679 | . . . . . . 57 121 198 20 71 . . 109 . 103 Slashing 261 | . . . . . . . . . . 126 135 . . . . Piercing . | . . . . . . . . . . . . . . . . Highest Corruption 5 | . . . . . . . . . . . . . . 5 5 Average Corruption 5 | . . . . . . . . . . . . . . 5 5 Corruption Purged . | . . . . . . . . . . . . . . . . Corruption Blocked . | . . . . . . . . . . . . . . . . Effects 8 | . . . . . . . . . . . . . . . 8 Message Errors 3 | . . . . . . . . . . . . . . . 3 Matter Fused 2 | . . . . . . . . . . . . . . . 2 Heat Flow Errors 1 | . . . . . . . . . . . . . . . 1 Data Loss (minor) 1 | . . . . . . . . . . . . . . . 1 Data Loss (major) 1 | . . . . . . . . . . . . . . . 1 Overload Shots . | . . . . . . . . . . . . . . . . Overflow Damage 385 | . 26 . . 4 2 59 . 70 34 31 . . 69 . 90 Projectiles 30 | . 26 . . 4 . . . . . . . . . . . Explosions 82 | . . . . . 2 37 . . 34 . . . . . 9 Melee 273 | . . . . . . 22 . 70 . 31 . . 69 . 81 Knockbacks 21 | . 9 3 . 3 4 1 . . . . . . . . 1 Impact 4 | . . . . . 2 1 . . . . . . . . 1 Kinetic 16 | . 9 3 . 2 2 . . . . . . . . . . Secondary 1 | . . . . 1 . . . . . . . . . . . Self-Inflicted Damage 81 | . . . . . . 34 . . . . . . . . 47 Shots 2 | . . . . . . 1 . . . . . . . . 1 Rammed 15 | . 5 1 . 2 7 . . . . . . . . . . Targets Rammed 17 | . 5 1 . 2 9 . . . . . . . . . . Kicked . | . . . . . . . . . . . . . . . . Crushed 2 | . . . . . 2 . . . . . . . . . . Highest Temperature 215 | . 72 126 . 123 172 4 . . 12 . 12 . . . 215 Average Temperature 44 | . 25 50 . 62 36 4 . . 9 . 8 . . . 95 Received Heat Transfer 1037 | . 81 65 . 51 738 30 . . 18 . . 9 9 . 36 Effects 2 | . . . . . . . . . . . . . . . 2 Energy Bleed 1 | . . . . . . . . . . . . . . . 1 Interference 1 | . . . . . . . . . . . . . . . 1 Siege Activations . | . . . . . . . . . . . . . . . . Robots Corrupted . | . . . . . . . . . . . . . . . . Combat Hostiles . | . . . . . . . . . . . . . . . . Parts Fried 10 | . . . . . . 2 . 4 . 1 . . 1 . 2 Impact Corruptions 8 | . . . . . . 1 . 1 . 1 . . 2 . 3 Robots Melted . | . . . . . . . . . . . . . . . . Combat Hostiles . | . . . . . . . . . . . . . . . . Parts Melted . | . . . . . . . . . . . . . . . . Heat Transferred . | . . . . . . . . . . . . . . . . Parts Sabotaged . | . . . . . . . . . . . . . . . . Parts Stolen . | . . . . . . . . . . . . . . . . Parts Stripped . | . . . . . . . . . . . . . . . . Power Chain Reactions . | . . . . . . . . . . . . . . . . Missiles Intercepted . | . . . . . . . . . . . . . . . . Alert | -11 -10 -10 -10 -9 -8 -7 -7 -7 -7 -7 -7 -6 -6 -6 -6 ------- Run | Scr Mat Min Exi Min Mat Fac Was Fac Low Low Dat Pro Fac Was Fac Peak Influence 524 | . 257 189 . 83 340 355 121 524 . . . . 476 129 352 Initial 121 | . . 57 . . . 116 121 84 . . . . 28 114 90 Average 142 | . 88 131 . 16 184 240 121 303 . . . . 267 116 196 Maximum Alert Level 2 | . 1 . . . 1 1 . 2 . . . . 2 . 1 Low Security (%) 65 | 100 93 100 . 100 46 22 100 17 . . . . 39 100 53 Level 1 32 | . 6 . . . 53 77 . 64 . . . . 25 . 46 Level 2 1 | . . . . . . . . 17 . . . . 34 . . Level 3 . | . . . . . . . . . . . . . . . . Level 4 . | . . . . . . . . . . . . . . . . Level 5 . | . . . . . . . . . . . . . . . . High Security . | . . . . . . . . . . . . . . . . Max Security . | . . . . . . . . . . . . . . . . Squads Dispatched 22 | . 4 . . . 4 5 . 2 . . . . 5 . 2 Investigation 15 | . 4 . . . . 4 . 2 . . . . 3 . 2 Extermination 1 | . . . . . . . . . . . . . 1 . . Reinforcement 6 | . . . . . 4 1 . . . . . . 1 . . Assault . | . . . . . . . . . . . . . . . . Garrison . | . . . . . . . . . . . . . . . . Intercept . | . . . . . . . . . . . . . . . . Searches Triggered 1 | . . . . . . . . . . . . . 1 . . Construction Impeded . | . . . . . . . . . . . . . . . . Haulers Reinforced . | . . . . . . . . . . . . . . . . Active Scanning Responses . | . . . . . . . . . . . . . . . . Cargo Convoy Interrupts . | . . . . . . . . . . . . . . . . Stealth | -11 -10 -10 -10 -9 -8 -7 -7 -7 -7 -7 -7 -6 -6 -6 -6 --------- Run | Scr Mat Min Exi Min Mat Fac Was Fac Low Low Dat Pro Fac Was Fac Distress Signals 6 | . 1 . . . 2 1 . . . . . . 2 . . Communications Jammed . | . . . . . . . . . . . . . . . . Distress Signals . | . . . . . . . . . . . . . . . . Times Spotted 200 | . 28 15 . 6 69 24 . 6 3 . 4 6 19 3 17 Peak Tracking Total 14 | . 3 14 . 4 6 6 . 3 3 . 4 3 7 4 6 Tactical Retreats 17 | . . 1 . . . 7 . . . . . 2 5 . 2 Traps | -11 -10 -10 -10 -9 -8 -7 -7 -7 -7 -7 -7 -6 -6 -6 -6 ------- Run | Scr Mat Min Exi Min Mat Fac Was Fac Low Low Dat Pro Fac Was Fac Traps Triggered 5 | . 2 . . . . 2 . . . . . . 1 . . Indirectly . | . . . . . . . . . . . . . . . . Trap Hack Attempts 14 | . . . . . . 14 . . . . . . . . . Triggered . | . . . . . . . . . . . . . . . . Disarmed . | . . . . . . . . . . . . . . . . Reprogrammed 5 | . . . . . . 5 . . . . . . . . . Reused . | . . . . . . . . . . . . . . . . Traps Extracted 5 | . . . . . . 5 . . . . . . . . . Installed . | . . . . . . . . . . . . . . . . Triggered . | . . . . . . . . . . . . . . . . Most Traps Carried 9 | . . . . . . 5 5 5 5 9 9 9 9 9 9 Machines | -11 -10 -10 -10 -9 -8 -7 -7 -7 -7 -7 -7 -6 -6 -6 -6 ---------- Run | Scr Mat Min Exi Min Mat Fac Was Fac Low Low Dat Pro Fac Was Fac Machines Disabled 10 | . 3 . . . . 1 . . . . . . 6 . . Max in Single Turn 4 | . 1 . . . . 1 . . . . . . 4 . . Garrison Access 2 | . . . . . 1 . . 1 . . . . . . . Machines Sabotaged . | . . . . . . . . . . . . . . . . Garrisons Compromised . | . . . . . . . . . . . . . . . . Overloaded Fab Kills . | . . . . . . . . . . . . . . . . Hacking | -11 -10 -10 -10 -9 -8 -7 -7 -7 -7 -7 -7 -6 -6 -6 -6 --------- Run | Scr Mat Min Exi Min Mat Fac Was Fac Low Low Dat Pro Fac Was Fac Machines Accessed 67 | . 10 . 1 . 15 16 . 5 . . 4 . 9 . 7 Terminals 39 | . 7 . . . 9 8 . 2 . . . . 8 . 5 Fabricators 6 | . . . . . . 3 . 2 . . . . . . 1 Repair Stations 5 | . 1 . . . 1 2 . . . . . . 1 . . Recycling Units 6 | . 2 . . . 2 2 . . . . . . . . . Scanalyzers 4 | . . . . . 2 1 . . . . . . . . 1 Garrison Access 2 | . . . . . 1 . . 1 . . . . . . . Total Hacks 216 | . 33 . 1 . 52 42 . 12 . . 27 . 25 . 24 Successful 160 | . 25 . 1 . 41 32 . 8 . . 27 . 12 . 14 Failed 55 | . 7 . . . 11 10 . 4 . . . . 13 . 10 Catastrophic 4 | . . . . . 1 . . . . . . . 2 . 1 Database Lockouts 1 | . 1 . . . . . . . . . . . . . . Manual 89 | . 20 . . . 25 18 . 3 . . . . 8 . 15 Terminals 131 | . 26 . . . 33 25 . 5 . . . . 23 . 19 Fabricators 14 | . . . . . . 7 . 6 . . . . . . 1 Repair Stations 14 | . 5 . . . 3 4 . . . . . . 2 . . Recycling Units 11 | . 2 . . . 5 4 . . . . . . . . . Scanalyzers 16 | . . . . . 10 2 . . . . . . . . 4 Garrison Access 2 | . . . . . 1 . . 1 . . . . . . . Terminal Hacks 85 | . 10 . 1 . 15 14 . 2 . . 27 . 7 . 9 Record 12 | . . . 1 . . . . . . . 11 . . . . Part Schematic 18 | . . . . . . 5 . . . . 9 . 3 . 1 Robot Schematic 4 | . . . . . . . . . . . 4 . . . . Robot Analysis 6 | . 2 . . . 3 . . . . . . . 1 . . Prototype ID Bank 12 | . 4 . . . 2 1 . . . . 3 . . . 2 Branch Access Points 4 | . . . . . 1 . . 1 . . . . 1 . 1 Terminal Index 5 | . 1 . . . 1 1 . . . . . . 1 . 1 Scanalyzer Index 1 | . . . . . . . . . . . . . . . 1 Alert Level 8 | . 2 . . . 3 1 . 1 . . . . . . 1 Unreport Threat 4 | . . . . . 2 1 . . . . . . . . 1 Locate Traps 9 | . . . . . 3 4 . . . . . . 1 . 1 Hauler Manifests 1 | . 1 . . . . . . . . . . . . . . Zone Layout 1 | . . . . . . 1 . . . . . . . . . Fabricator Hacks 9 | . . . . . . 4 . 4 . . . . . . 1 Network Status 1 | . . . . . . . . . . . . . . . 1 Load Schematic 5 | . . . . . . 3 . 2 . . . . . . . Build 3 | . . . . . . 1 . 2 . . . . . . . Repair Station Hacks 12 | . 4 . . . 3 3 . . . . . . 2 . . Scan Component 7 | . 2 . . . 2 2 . . . . . . 1 . . Repair 5 | . 2 . . . 1 1 . . . . . . 1 . . Recycling Unit Hacks 1 | . . . . . 1 . . . . . . . . . . Retrieve Components 1 | . . . . . 1 . . . . . . . . . . Scanalyzer 15 | . . . . . 10 2 . . . . . . . . 3 Insert Component 8 | . . . . . 5 1 . . . . . . . . 2 Analyze 7 | . . . . . 5 1 . . . . . . . . 1 Garrison Access Hacks 2 | . . . . . 1 . . 1 . . . . . . . Seal Access 2 | . . . . . 1 . . 1 . . . . . . . Unauthorized Hacks 36 | . 11 . . . 11 9 . 1 . . . . 3 . 1 Terminals 25 | . 9 . . . 7 5 . . . . . . 3 . 1 Assimilate 6 | . 3 . . . . 1 . . . . . . 2 . . Botnet 14 | . 3 . . . 6 3 . . . . . . 1 . 1 Disrupt 1 | . 1 . . . . . . . . . . . . . . Operators 4 | . 2 . . . 1 1 . . . . . . . . . Fabricators 2 | . . . . . . 1 . 1 . . . . . . . Prioritize 1 | . . . . . . . . 1 . . . . . . . Recompile 1 | . . . . . . 1 . . . . . . . . . Repair Stations . | . . . . . . . . . . . . . . . . Recycling Units 9 | . 2 . . . 4 3 . . . . . . . . . Reject 3 | . . . . . 2 1 . . . . . . . . . Mask 4 | . . . . . 2 2 . . . . . . . . . Tunnel 2 | . 2 . . . . . . . . . . . . . . Scanalyzers . | . . . . . . . . . . . . . . . . Garrison Access . | . . . . . . . . . . . . . . . . Data Cores Recovered . | . . . . . . . . . . . . . . . . Used . | . . . . . . . . . . . . . . . . Hacking Detections 53 | . 8 . . . 12 16 . 4 . . . . 7 . 6 Full Trace Events 10 | . . . . . . 3 . 2 . . . . 3 . 2 Feedback Events . | . . . . . . . . . . . . . . . . Feedback Blocked . | . . . . . . . . . . . . . . . . Robot Schematics Acquired 4 | . . . . . . . . . . . 4 . . . . Robots Built . | . . . . . . . . . . . . . . . . Authchips . | . . . . . . . . . . . . . . . . Time . | . . . . . . . . . . . . . . . . Total Robot Build Rating . | . . . . . . . . . . . . . . . . Part Schematics Acquired 24 | . . . . . 4 6 . . . . 9 . 3 . 2 Parts Built 4 | . . . . . . 2 . 2 . . . . . . . Authchips . | . . . . . . . . . . . . . . . . Time 176 | . . . . . . 42 . 134 . . . . . . . Total Part Build Rating 16 | . . . . . . 8 . 8 . . . . . . . Parts Repaired 5 | . 2 . . . 1 1 . . . . . . 1 . . Time 210 | . 52 . . . 60 60 . . . . . . 38 . . Parts Recycled . | . . . . . . . . . . . . . . . . Recycled Matter . | . . . . . . . . . . . . . . . . Retrieved Matter . | . . . . . . . . . . . . . . . . Retrieved Components 10 | . . . . . 10 . . . . . . . . . . Parts Scanalyzed 6 | . . . . . 4 1 . . . . . . . . 1 Part Schematics Acquired 6 | . . . . . 4 1 . . . . . . . . 1 Parts Damaged 1 | . . . . . . . . . . . . . . . 1 Bothacking | -11 -10 -10 -10 -9 -8 -7 -7 -7 -7 -7 -7 -6 -6 -6 -6 ------------ Run | Scr Mat Min Exi Min Mat Fac Was Fac Low Low Dat Pro Fac Was Fac Used RIF Installer . | . . . . . . . . . . . . . . . . Robots Hacked . | . . . . . . . . . . . . . . . . Non-combat . | . . . . . . . . . . . . . . . . Combat . | . . . . . . . . . . . . . . . . Robot Hacks Applied . | . . . . . . . . . . . . . . . . Relay Couplers Released . | . . . . . . . . . . . . . . . . Fabnet Peak Effective % . | . . . . . . . . . . . . . . . . Robots Rewired . | . . . . . . . . . . . . . . . . Allies Hacked . | . . . . . . . . . . . . . . . . Hacks Repelled . | . . . . . . . . . . . . . . . . Allies | -11 -10 -10 -10 -9 -8 -7 -7 -7 -7 -7 -7 -6 -6 -6 -6 -------- Run | Scr Mat Min Exi Min Mat Fac Was Fac Low Low Dat Pro Fac Was Fac Total Allies 25 | . 1 . . . . 1 20 . . . . . 2 1 . Largest Group 20 | . 1 . . . . 1 20 20 7 4 4 . 1 1 . Highest-Rated Group 489 | . 10 . . . . 10 489 489 205 112 112 . 26 31 . Highest-Rated Ally 31 | . 10 . . . . 10 31 31 31 31 31 . 26 31 . Total Orders . | . . . . . . . . . . . . . . . . Ally Attacks 168 | . . . . . . . . 139 28 . 1 . . . . Total Damage 2414 | . . . . . . . . 2029 385 . . . . . . Kills 20 | . . . . . . . . 18 2 . . . . . . Allies Corrupted . | . . . . . . . . . . . . . . . . Allies Melted . | . . . . . . . . . . . . . . . . Intel | -11 -10 -10 -10 -9 -8 -7 -7 -7 -7 -7 -7 -6 -6 -6 -6 ------- Run | Scr Mat Min Exi Min Mat Fac Was Fac Low Low Dat Pro Fac Was Fac Robot Analysis Total 6 | . 2 . . . 3 . . . . . . . 1 . . Derelict Logs Recovered 5 | . . . . 1 . . . . 2 1 . 1 . . . Drone Launches . | . . . . . . . . . . . . . . . . Drone Recoveries . | . . . . . . . . . . . . . . . . Exploration | -11 -10 -10 -10 -9 -8 -7 -7 -7 -7 -7 -7 -6 -6 -6 -6 ------------- Run | Scr Mat Min Exi Min Mat Fac Was Fac Low Low Dat Pro Fac Was Fac Turns Passed 12329 | 85 2269 235 504 1917 4604 683 81 354 359 266 42 255 352 33 290 Spaces Moved 9527 | 45 819 81 211 602 1654 1686 126 400 684 416 107 705 961 107 923 Core 1 | 1 . . . . . . . . . . . . . . . Treads 3411 | 44 819 81 211 602 1654 . . . . . . . . . . Legs . | . . . . . . . . . . . . . . . . Wheels . | . . . . . . . . . . . . . . . . Hover . | . . . . . . . . . . . . . . . . Flight 6115 | . . . . . . 1686 126 400 684 416 107 705 961 107 923 Fastest Speed 17 | 50 160 240 240 240 238 26 26 26 26 26 23 23 26 26 17 Average Speed 106 | 157 233 240 240 308 241 26 26 26 26 27 25 25 26 26 25 Slowest Speed 320 | 160 240 240 240 320 243 99 26 26 94 94 26 26 26 26 94 Overloaded Moves 92 | . . . . . . . . . . . 22 4 . . 66 Propulsion Burnouts . | . . . . . . . . . . . . . . . . Robots Hopped 53 | . . . . . . 7 . 1 . . 4 . 16 . 25 Cave-ins Triggered . | . . . . . . . . . . . . . . . . Exploration Rate (%) 58 | 4 99 22 57 97 96 37 85 14 78 62 80 72 27 77 27 Regions Visited 15 Branch Regions 7 Pre-discovered Areas 4 | . 2 . 1 . . . . . . . 1 . . . . Known Exits Taken 5 | . . . . . . . . 1 1 1 1 1 . . . Unknown Exits Taken 6 | 1 1 1 1 1 1 . . . . . . . . . . Scrap Searched 11 | . . . . 4 . . . . 3 3 . 1 . . . Spaces Dug 39 | . . . . . . 10 . 6 5 3 . 4 6 . 5 Terrain Destroyed 95 | . . 4 . 3 11 17 . 6 9 3 . 4 6 . 32 Melee 39 | . . . . . . 10 . 6 5 3 . 4 6 . 5 Projectile 7 | . . 4 . 3 . . . . . . . . . . . AOE 49 | . . . . . 11 7 . . 4 . . . . . 27 Terrain Rammed . | . . . . . . . . . . . . . . . . Walls Destroyed . | . . . . . . . . . . . . . . . . Machines Disabled . | . . . . . . . . . . . . . . . . Actions | -11 -10 -10 -10 -9 -8 -7 -7 -7 -7 -7 -7 -6 -6 -6 -6 --------- Run | Scr Mat Min Exi Min Mat Fac Was Fac Low Low Dat Pro Fac Was Fac Total 11198 | 57 1094 95 210 630 2037 1890 172 636 852 558 116 771 1031 112 937 Wait 1071 | . 155 1 . 6 101 113 40 217 160 128 2 59 69 . 20 Move 9415 | 44 818 80 210 601 1653 1672 125 397 683 415 99 704 930 106 878 Hop 46 | . . . . . . 7 . 1 . . 3 . 15 . 20 Pick Up 78 | 7 25 . . 3 27 5 1 3 . . 3 . 1 3 . Fast Attach 43 | 5 4 . . 2 17 2 2 3 . 3 1 . 2 . 2 Attach 33 | 1 2 . . . 6 13 . . . 1 3 2 1 1 3 Detach 7 | . . . . . 2 . . . . 1 . 1 1 . 2 Swap 40 | . 11 . . 2 15 8 . . 2 2 . . . . . Drop 96 | . 15 . . 1 40 19 3 6 . 3 4 1 1 2 1 Fire 261 | . 59 13 . 13 167 2 . . 1 . . . 2 . 4 Melee 59 | . . . . . . 17 1 9 6 5 1 4 9 . 7 Ram . | . . . . . . . . . . . . . . . . Kick . | . . . . . . . . . . . . . . . . Crush 17 | . 5 1 . 2 9 . . . . . . . . . . Escape Stasis 18 | . . . . . . 18 . . . . . . . . . Rewire . | . . . . . . . . . . . . . . . . Trap 14 | . . . . . . 14 . . . . . . . . . Miscellaneous . | . . . . . . . . . . . . . . . . Route ------- -11/Scrapyard -10/Materials (discovered 5 exits: [*Mat x3] / [*Min x2]) -10/Mines -10/Exiles -9/Mines (discovered 2 exits: *Mat x2) -8/Materials (discovered 4 exits: *Fac x3 / *Sto) -7/Factory -7/Waste -7/Factory (discovered 3 exits: *Fac / *Low x2) -7/Lower Caves -7/Lower Caves -7/Data Miner -6/Proximity Caves -6/Factory (discovered 4 exits: *Fac x2 / Low x2) -6/Waste -6/Factory (discovered 3 exits: *Fac / Low x2) History --------- Turn | Location | Event 7 | -11/Scrapyard | Discovered new exit (range 15) 86 | -11/Scrapyard | Entered Materials 318 | -10/Materials | Build established: Mutant 438 | -10/Materials | Discovered new exit (range 5) 508 | -10/Materials | Discovered new exit (range 7) 577 | -10/Materials | Central database locked down 579 | -10/Materials | Discovered new exit (range 11) 1498 | -10/Materials | Discovered new exit (range 9) 1792 | -10/Materials | Discovered new exit (range 15) 2133 | -10/Materials | Repaired Lgt. Treads 2159 | -10/Materials | Repaired Lgt. Treads 2355 | -10/Materials | Entered Mines 2564 | -10/Mines | Assembled infested the area 2580 | -10/Mines | Deemed a non-threat by the Exiles lab entrance 2580 | -10/Mines | Discovered new exit (range 5) 2590 | -10/Mines | Entered Exiles 2650 | -10/Exiles | Met 8R-AWN 2689 | -10/Exiles | Met EX-HEX 2792 | -10/Exiles | Met EX-DEC 2804 | -10/Exiles | Learned location of Zion (-6) 2845 | -10/Exiles | Met EX-BIN 3063 | -10/Exiles | Discovered new exit (range 15) 3094 | -10/Exiles | Entered Mines 3104 | -9/Mines | Discovered new exit (range 13) 3289 | -9/Mines | Learned Materials trap positions 3296 | -9/Mines | Received a Rocket Launcher from a helpful Derelict 3989 | -9/Mines | Discovered new exit (range 10) 4269 | -9/Mines | Found a hidden stash of uninstalled traps 4372 | -9/Mines | A weapon hastily lodged in a ceiling crevice suddenly fell to the ground 5011 | -9/Mines | Entered Materials 5011 | -8/Materials | Evolved 4 slots: Propulsion x1, Utility x3 5012 | -8/Materials | Loaded intel: 33 trap records 5098 | -8/Materials | Destroyed 7 combat bots 5975 | -8/Materials | Build established: Scavenger-Mutant 6346 | -8/Materials | Identified exit to Storage 7032 | -8/Materials | Build established: Mutant 7059 | -8/Materials | Discovered new exit (range 16) 8119 | -8/Materials | Discovered new exit (range 11) 8891 | -8/Materials | Discovered new exit (range 15) 9272 | -8/Materials | Repaired Enh. Autogun 9615 | -8/Materials | Entered Factory 9615 | -7/Factory | Evolved 2 slots: Propulsion x1, Utility x1 9929 | -7/Factory | Build established: Hacker-Sprinter 9984 | -7/Factory | Fabricated Imp. Trap Extractor (x2) 10144 | -7/Factory | Repaired Imp. VTOL Module 10298 | -7/Factory | Sucked down chute 10298 | -7/Factory | Entered Waste 10299 | -7/Waste | Joined by Warlord forces that had cleared the area 10335 | -7/Waste | Discovered new exit (range 12) 10338 | -7/Waste | Identified exit to Factory 10379 | -7/Waste | Entered Factory 10379 | -7/Factory | Accompanied by 20 allies 10405 | -7/Factory | Identified exit to Lower Caves 10480 | -7/Factory | Fabricated Cld. VTOL Module (x1) 10508 | -7/Factory | Build established: Scavenger-Scout 10593 | -7/Factory | Fabricated Cld. VTOL Module (x1) 10697 | -7/Factory | Discovered new exit (range 14) 10733 | -7/Factory | Entered Lower Caves 10733 | -7/Lower Caves | Accompanied by 7 allies 10943 | -7/Lower Caves | Attracted the attention of an 0b10 checkpoint 10986 | -7/Lower Caves | Discovered new exit (range 18) 10990 | -7/Lower Caves | Identified exit to Lower Caves 11033 | -7/Lower Caves | Learned location of 1 exit from Proximity Caves 11033 | -7/Lower Caves | Learned 4 Factory zone layouts 11092 | -7/Lower Caves | Entered another Lower Caves area 11092 | -7/Lower Caves | Accompanied by 4 allies 11092 | -7/Lower Caves | Learned 4 Factory zone layouts 11196 | -7/Lower Caves | Spotted B-75 Beast 11293 | -7/Lower Caves | Discovered new exit (range 7) 11295 | -7/Lower Caves | Identified exit to Data Miner 11358 | -7/Lower Caves | Entered Data Miner 11358 | -7/Data Miner | Accompanied by 4 allies 11358 | -7/Data Miner | Discovered new exit (range 6) 11361 | -7/Data Miner | Identified exit to Proximity Caves 11369 | -7/Data Miner | Met Data Miner 11375 | -7/Data Miner | Learned location of Section 7 (-3) 11375 | -7/Data Miner | Acquired the access code to Warlord's prototype stash 11379 | -7/Data Miner | Received God Mode back door access code from Data Miner 11385 | -7/Data Miner | Destroyed Data Miner 11389 | -7/Data Miner | Found Prototype Hackware 11393 | -7/Data Miner | Data Conduit disabled 11400 | -7/Data Miner | Entered Proximity Caves 11401 | -6/Proximity Caves | Identified exit to Factory 11528 | -6/Proximity Caves | Learned Factory trap positions 11655 | -6/Proximity Caves | Entered Factory 11655 | -6/Factory | Evolved 2 slots: Utility x2 11656 | -6/Factory | Identified exit to Factory 11657 | -6/Factory | Loaded intel: 93 trap records 11692 | -6/Factory | Identified exit to Lower Caves 11701 | -6/Factory | Build established: Trapper-Scout 11713 | -6/Factory | Spotted B-75 Beast 11788 | -6/Factory | Discovered exit to Factory (range 11) 11837 | -6/Factory | Repaired Imp. Sensor Array 12005 | -6/Factory | Search patrols dispatched 12007 | -6/Factory | Manually triggered Chute Trap 12007 | -6/Factory | Sucked down chute 12007 | -6/Factory | Entered Waste 12008 | -6/Waste | Met a frightened Derelict 12022 | -6/Waste | EMP discharged 12024 | -6/Waste | Spotted C-40 Crusher 12028 | -6/Waste | Spotted C-40 Crusher 12029 | -6/Waste | Spotted C-40 Crusher 12034 | -6/Waste | Spotted C-40 Crusher 12035 | -6/Waste | Spotted C-40 Crusher 12037 | -6/Waste | Discovered new exit (range 11) 12040 | -6/Waste | Identified exit to Factory 12040 | -6/Waste | Entered Factory 12058 | -6/Factory | Spotted B-75 Beast 12232 | -6/Factory | Identified Ghost Barrier 12313 | -6/Factory | Discovered exit to Factory (range 22) 12330 | -6/Factory | Self-destructed Last Messages --------------- 12257_ K-01 Serf collects debris. 12258_ Imp. Grenade Launcher destroyed. 12258_ Destroyed Imp. Grenade Launcher. 12259_ K-01 Serf collects debris. 12262_ The unstable cave ceiling collapses. 12268_ K-01 Serf collects debris. 12269_ Imp. VTOL Module destroyed. 12273_ Acquired 100 matter. 12274_ U-05 Engineer lays Concrete. 12276_ Overheating: Energy bleed (-10). 12277_ Overheating: System interference. 12277_ Enh. Optical Array temporarily disabled. 12288_ K-01 Serf cleans the Fusion Modulator. 12308_ System corrupted: Matter fused (-9). 12313_ EXIT=FOUND: FACTORY 12318_ Imp. VTOL Module destroyed. 12320_ R-10 Processor suffers critical hit (Burn). 12330_ Connecting with Terminal... 12330_ ALERT: Suspicious activity at Terminal F016. Dispatching Investigation squad. Map ----- +----------------------------------------------------+ | ?????????????????????????????????????????????????? | | ?????????????????????????????????????????????????? | | ?????????????????????????????????????????????????? | | ?????????????????????????????????????????????????? | | ?????????????????????????????????????????????????? | | ?????????????????????????????????????????????????? | | ???????????????????????????????????????????????>?? | | ?????????????????????????????????????????????????? | | ?????????????????????????????????????????????????? | | ????????????????????????""???????????????????????? | | ????????????????????????""???????????????????????? | | ???????????????????????? ???????????????????????? | | ???????????????????????? ???????????????????????? | | ???????????????????????? ???????????????????????? | | ???????????????????????? #??????????????????????? | | ????????????????????????# #??????????????????????? | | ????????????????????????# #??????????????????????? | | ????????????????????????# #??????????????????????? | | ???????????????R????????# #??????????????????????? | | ????????????????????????# #??????????????????????? | | ????????????????????????# #?????????????H????????? | | ??????????????????????### ###????????????????????? | | ??????????????????????# !#????????????????????? | | ???????????????????k### #????????????????????? | | ????????????????????+ T #?????#########?????? | | ??????????????????????# @ #?????# #????? | | ??????????????????????# #?????# ##### | | ?????????????A????????###+#####???# | | ????????????k?????????# !#???# < | | ??????????????????????#!! ##### | | ??????????????????????#!! + #??????? | | ?????????????????? #!! #####A #??????? | | ????????????????? #########???###R ###??????? | | ???????????????? ??????????????# #????????? | | ????????????????? ??????????????# #????????? | | ????????????????? #?????????????# #????????? | | ?????????????????k #?????????????# #????????? | | ?????????????????? #?????????????# #????????? | | ?????????????????? #?????????????# #????????? | | ?????????????????? +?????????????# #??####### | | ??????????????????? #?????????????# #? | | ??????????????????? #?????????????# #? | | ???????????????????# #?????????????# # | | ???????????????????# #?????????????# # | | ???????????????????# +?????????????# + | | ???????????????????# #?????????????# # | | ???????????????????# ##########???## ########## | | ???????????????????# # ##### #????# | | ????????#######????# ###### | | ????????# ????# | +----------------------------------------------------+ Best States ------------- Heat Dissipation 69 Energy Generation 15 Energy Capacity 250 Matter Stores 300 Matter Capacity 300 Sight Range 22 Robot Scan Range 16 Terrain Scan Density 10 Armor Coverage 375 Resistance: TH 10 Evasion (%) 64 Targeting Accuracy 6 Core Analysis 6 Recoil Reduction 3 Offensive Hacking 30 Authchip Count 1 Trap Extractor Capacity 6 Item Schematics ----------------- Imp. VTOL Module | -8/Materials | Scanalyzed Adv. Beam Rifle | -8/Materials | Scanalyzed Hacking Suite | -8/Materials | Scanalyzed Imp. Grenade Launcher | -8/Materials | Scanalyzed Exp. Targeting Computer | -7/Factory | Hacked Huge Storage Unit | -7/Factory | Scanalyzed Imp. Trap Extractor | -7/Factory | Hacked Adv. Melee Analysis Suite | -7/Factory | Hacked Cld. Plasma Cannon | -7/Factory | Hacked Cld. VTOL Module | -7/Factory | Hacked Combat Drone Bay | -7/Data Miner | Free Lgt. Regenerative Plating | -7/Data Miner | Free Cld. Cesium-ion Thruster | -7/Data Miner | Free Gravity Neutralizer | -7/Data Miner | Free Shock Maul | -7/Data Miner | Free Gyrokinetic Inverter | -7/Data Miner | Free Imp. Thermal Shield | -7/Data Miner | Free Hvy. Phase Cannon | -7/Data Miner | Free Mni. Drone Bay | -7/Data Miner | Free Imp. Armor Integrity Analyzer | -6/Factory | Hacked Hyp. Mass Driver | -6/Factory | Hacked Quantum Capacitor | -6/Factory | Hacked Adv. Sensor Array | -6/Factory | Hacked Cld. Nuclear Pulse Thruster | -6/Factory | Scanalyzed Robot Schematics ------------------ P-60 Hacker | -7/Data Miner | Free A-15 Conveyor | -7/Data Miner | Free H-55 Commando | -7/Data Miner | Free W-25 Informer | -7/Data Miner | Free Fabricated ------------ Imp. Trap Extractor | x2 | -7/Factory Cld. VTOL Module | x1 | -7/Factory Cld. VTOL Module | x1 | -7/Factory Alien Tech Used ----------------- None Achievements -------------- None Challenges ------------ None Game ------ Seed MobileDamperKit Manual? 0 Play Time 01:15:22 Cumulative 534.4 hours Start 2022.07.13 @ 19:21:32 End 2022.07.14 @ 06:59:44 Sessions 3 Manual Loads 0 Difficulty Rogue Special Mode None Game No. 482 Rogue 482 Adventurer 0 Explorer 0 Win Type - Total 24 Types 13/2/5/2/0/0/1/1/0 Lore% 94 Gallery% 94 Achievement% 78 Wizard Run 0 Options --------- ASCII 0 Keyboard 0 Movement Arrows Keybinds 0 Fullscreen 1 Font 18/Smallcaps Map View 76x50 Tactical HUD 1 Map Filters NONE Filters NONE Steam 1 RUN: 9bea2f06-e48a-4279-931f-a7e096cf9939